[Event "Prague Festival-Challengers 2022"]
[Site "Prague"]
[Date "2022.06.13"]
[Round "5.5"]
[White "Pechac, Jergus"]
[Black "Hracek, Zbynek"]
[Result "1/2-1/2"]
[ECO "D02"]
[WhiteElo "2597"]
[BlackElo "2570"]
[Annotator "TA"]
[PlyCount "77"]
[EventDate "2022.06.07"]
[EventType "tourn"]
[EventCountry "CZE"]
[SourceTitle "playchess.com"]
[Source "ChessBase"]
[SourceQuality "1"]
[TimeControl "40/5400+30:1800+30"]

{[%evp 9,77,0,6,10,12,12,17,0,18,0,0,0,0,0,0,0,0,0,11,4,19,-85,0,0,76,-8,0,0,0,-35,-31,-63,81,48,55,49,53,51,60,60,76,36,33,0,0,0,0,0,0,0,8,0,0,0,0,0,0,0,0,0,0,0,0,0,0,-11,0,-9,0,-40]} 1. d4 {[%emt 0:00:15]} Nf6 {[%emt 0:00:08]} 2. Nf3 {[%emt 0:00:31]} d5 {[%emt 0:00:13]} 3. Bf4 {[%emt 0:00:09]} c5 {[%emt 0:00:49]} 4. e3 {[%emt 0:00:06]} Nc6 {[%emt 0:00:05]} 5. Nbd2 {[%emt 0:00:05]} cxd4 {[%emt 0:00:34]} 6. exd4 {[%emt 0:00:07] D02: 1 d4 d5 2 Nf3 sidelines, including 2...Nf6 3 g3 and 2...Nf6 3 Bf4.} Bf5 {[%emt 0:00:05]} 7. Bb5 {[%emt 0:00:29]} Rc8 {[%emt 0:01:12]} 8. Ne5 {[%emt 0:00:20]} Qb6 {[%emt 0:00:16][%csl LRb5,LRd4] [#]} 9. Qe2 $146 {[%emt 0:00:11]} ({Predecessor:} 9. Bxc6+ bxc6 10. Nb3 h6 11. O-O e6 12. c4 Be7 13. Qe2 Qa6 14. Nc5 Bxc5 15. dxc5 {1-0 (38) Abasov,N (2665)-Navara,D (2697) Prague 2021}) 9... Qxd4 {[%emt 0:01:28]} 10. g3 {[%emt 0:00:13]} Qb6 {[%emt 0:00:45]} (10... Bxc2 11. Rc1 Ba4 12. Nxc6 Rxc6 13. Bxc6+ Bxc6 14. O-O $16) 11. O-O {[%emt 0:03:50]} e6 {[%emt 0:01:06]} 12. g4 {[%emt 0:02:35]} Bg6 {[%emt 0:00:04]} 13. h4 {[%emt 0:00:42]} (13. Nxg6 hxg6 14. g5 Nd7 $17) 13... a6 {[%emt 0:27:16]} (13... Bxc2 14. Rac1 Qd4 15. Qe3 Qxe3 16. Bxe3 $16) 14. Bxc6+ {[%emt 0:10:26]} bxc6 {[%emt 0:00:35]} 15. h5 {[%emt 0:01:55]} (15. Rac1 $11 {keeps the balance.}) 15... Be4 {[%emt 0:00:06]} (15... Bxc2 $17 {...Qb5 is the strong threat.} 16. Ndc4 dxc4 17. Qxc2 Qb5) 16. g5 $11 {[%emt 0:01:42]} Rg8 {[%emt 0:00:23] [#]} 17. Kh2 {[%emt 0:02:51]} (17. g6 $1 $16 {[%cal Rg6f7]} fxg6 18. Nxe4 Nxe4 19. hxg6 (19. Qg4 c5 $16)) 17... Bf5 {[%emt 0:03:27] Strongly threatening ...Qd4.} 18. gxf6 {[%emt 0:03:09]} gxf6 {[%emt 0:00:03] And now ...Qd4 would win.} 19. Nef3 {[%emt 0:01:12] Against Qd4} Qb4 $1 {[%emt 0:11:41]} 20. c4 {[%emt 0:05:11]} Bd6 {[%emt 0:01:37]} (20... Rg4 $1 $15 {stays ahead.} 21. Bg3 dxc4) 21. Bg3 {[%emt 0:00:10]} Bxg3+ {[%emt 0:08:05]} 22. fxg3 {[%emt 0:00:06]} Qxb2 {[%emt 0:01:47]} 23. cxd5 {[%emt 0:06:57]} cxd5 {[%emt 0:02:17]} 24. Qxa6 {[%emt 0:00:23]} Rc2 {[%emt 0:11:49]} 25. Qa4+ {[%emt 0:08:14]} (25. Qa8+ $6 Ke7 26. Qa5 (26. Qxg8 $2 Rxd2+ 27. Nxd2 Qxd2+ 28. Kg1 Qd4+ 29. Kg2 Qb2+ 30. Kf3 Be4+ 31. Ke3 Qc3+ 32. Ke2 Bd3+ 33. Kf2 Qb2+ 34. Ke3 Qe2+ 35. Kd4 Qc2 $19) 26... Rgc8 $11) 25... Kf8 {[%emt 0:02:00]} 26. Qf4 {[%emt 0:00:13]} (26. Qa5 $5 {[%cal Ra1b1]} Kg7 27. Rfb1 $11) 26... Rg5 $36 {[%emt 0:07:17][%mdl 2048] Black has good play. The position is equal.} 27. Rab1 {[%emt 0:07:00]} (27. Nxg5 $2 Rxd2+ 28. Qxd2 Qxd2+ 29. Kg1 Qxg5 $19) 27... Qc3 $1 {[%emt 0:11:44]} (27... Rxh5+ $2 28. Kg1 Qa3 29. g4 $18) 28. Rf2 {[%emt 0:35:27]} Rxh5+ {[%emt 0:00:07]} 29. Nh4 {[%emt 0:00:13]} e5 {[%emt 0:05:55]} 30. Rb8+ {[%emt 0:00:51]} Ke7 $1 {[%emt 0:00:55]} (30... Kg7 31. Qxf5) 31. Rb7+ {[%emt 0:00:44]} Kf8 {[%emt 0:00:46]} 32. Rb8+ {[%emt 0:02:18]} Ke7 $1 {[%emt 0:00:04]} (32... Kg7 {gets mated.} 33. Qxf5) 33. Qa4 {[%emt 0:01:26] Black must now prevent Qe8+. The board is on fire.} Rxh4+ {[%emt 0:00:56]} (33... Rxd2 $2 34. Qe8+ Kd6 35. Rb6+ (35. Qd8+ Kc5 $11) 35... Kc5 36. Rc6+ Kd4 37. Rxc3 Rxf2+ 38. Kg1 Kxc3 39. Kxf2 $18) 34. Qxh4 {[%emt 0:01:46]} (34. gxh4 $2 {perishes.} Qh3+ 35. Kg1 Rc1+ 36. Nf1 {[#]} Rxf1+ $1 {[%mdl 512]} 37. Rxf1 Qg3+ 38. Kh1 Be4+ 39. Qxe4 dxe4 40. Rb7+ Ke6 41. Rb6+ Kd5 42. Rb5+ Kc4 $19) 34... Rxd2 {[%emt 0:00:02]} 35. Rb7+ {[%emt 0:00:07]} Ke8 {[%emt 0:00:50]} 36. Rb8+ {[%emt 0:00:43]} Ke7 {[%emt 0:00:18]} 37. Rb7+ {[%emt 0:01:00]} Ke8 {[%emt 0:01:12]} 38. Rb8+ {[%emt 0:00:08]} Ke7 {[%emt 0:00:09]} 39. Rb7+ {[%emt 0:00:05] Weighted Error Value: White=0.16 (very precise) /Black=0.16 (very precise)} 1/2-1/2

[Event "Prague Festival-Challengers 2022"]
[Site "Prague"]
[Date "2022.06.14"]
[Round "6.1"]
[White "Keymer, Vincent"]
[Black "Krzyzanowski, Marcin"]
[Result "1/2-1/2"]
[ECO "D73"]
[WhiteElo "2667"]
[BlackElo "2535"]
[Annotator "TA"]
[PlyCount "113"]
[EventDate "2022.06.07"]
[EventType "tourn"]
[EventCountry "CZE"]
[SourceTitle "playchess.com"]
[Source "ChessBase"]
[SourceQuality "1"]
[TimeControl "40/5400+30:1800+30"]

{[%evp 14,113,22,13,41,29,41,32,36,16,49,0,0,0,0,0,10,0,10,-18,-14,-10,0,0,0,0,0,0,0,0,6,8,22,5,5,10,12,3,21,18,12,7,9,0,2,0,43,40,62,0,0,-27,4,0,81,6,6,6,7,8,15,0,36,33,36,37,37,35,31,29,35,37,22,22,49,48,49,41,45,39,54,8,8,0,0,0,0,0,0,0,0,0,0,0,0,0,0,0,0,0,0,0]} 1. d4 {[%emt 0:00:06]} Nf6 {[%emt 0:00:08]} 2. c4 {[%emt 0:00:04]} g6 {[%emt 0:00:08]} 3. g3 {[%emt 0:00:21]} c6 {[%emt 0:00:43]} 4. Bg2 {[%emt 0:00:52]} d5 {[%emt 0:00:06]} 5. Qb3 {[%emt 0:01:05]} Bg7 {[%emt 0:00:52]} 6. Nc3 {[%emt 0:00:43]} dxc4 {[%emt 0:03:55]} 7. Qxc4 {[%emt 0:00:06]} O-O {[%emt 0:00:03]} 8. Nf3 {[%emt 0:03:05]} a5 {[%emt 0:01:45] D73: Fianchetto Grünfeld: 5 Nf3 .} 9. O-O {[%emt 0:09:01]} a4 {[%emt 0:05:42] [#]} 10. Qd3 $146 {[%emt 0:06:11]} ({Avoid the trap} 10. Nxa4 $2 b5 11. Qc3 Rxa4 $19) ({Predecessor:} 10. Bf4 Qa5 11. Qxa4 Qxa4 12. Nxa4 Rxa4 13. Bxb8 Be6 14. Be5 Rxa2 15. Rxa2 Bxa2 16. Ra1 {½-½ (41) Loginov,V (2540)-Yandemirov,V (2475) Togliatti 2003}) 10... Qa5 {[%emt 0:07:51] White is slightly better.} 11. e4 {[%emt 0:07:43]} Rd8 {[%emt 0:03:51][%cal Oe7e5]} 12. e5 {[%emt 0:05:11]} (12. Bd2 $14) 12... Bf5 $11 {[%emt 0:02:12]} 13. Qe2 {[%emt 0:02:20]} Nd5 {[%emt 0:01:10][%cal Bf6d5,Bd5b6,Bb6c4][%mdl 32]} 14. Bg5 {[%emt 0:01:01]} f6 {[%emt 0:09:36]} 15. Bd2 {[%emt 0:07:27][%cal Bg5d2,Bd2b4,Bb4e7,Be7f6,Bf6e5,Be5f4][%mdl 32]} Qa6 {[%emt 0:01:43]} 16. Rfe1 {[%emt 0:07:06]} Qxe2 {[%emt 0:03:14]} 17. Rxe2 {[%emt 0:03:51]} Nb6 {[%emt 0:06:59]} 18. Ne4 {[%emt 0:02:42]} Nc4 {[%emt 0:04:11]} 19. Bb4 {[%emt 0:02:33]} fxe5 {[%emt 0:03:22]} 20. Bxe7 {[%emt 0:07:22]} Re8 {[%emt 0:03:24]} 21. Nf6+ {[%emt 0:02:58]} Bxf6 {[%emt 0:00:05]} 22. Bxf6 {[%emt 0:00:02]} e4 {[%emt 0:14:31]} 23. Ne5 {[%emt 0:01:10]} Nxe5 {[%emt 0:00:06]} 24. Bxe5 {[%emt 0:00:30]} Nd7 {[%emt 0:00:07]} 25. Bf4 {[%emt 0:01:45]} Re6 {[%emt 0:02:16]} 26. h3 {[%emt 0:02:26] [#] Threatens to win with g4.} h5 {[%emt 0:00:06] Against g4} 27. Rd1 {[%emt 0:01:00]} Nf6 {[%emt 0:02:44]} 28. Rde1 {[%emt 0:00:58]} Kf7 {[%emt 0:02:34]} 29. Be5 {[%emt 0:01:35]} Nd7 {[%emt 0:03:22][%cal Bf6d7,Bd7b6,Bb6d5][%mdl 32]} 30. Bxe4 {[%emt 0:03:25]} Bxh3 {[%emt 0:09:37]} 31. Re3 {[%emt 0:08:21]} (31. Bc7 $1 $14) 31... Bf5 {[%emt 0:01:30]} 32. Bg2 {[%emt 0:02:13]} Nb6 {[%emt 0:00:53]} 33. Rc1 {[%emt 0:00:57]} Ra5 {[%emt 0:02:24] [#]} (33... Nd7 $11 {remains equal.}) 34. Bf1 {[%emt 0:00:54] White is more active. This bishop pair is nice.} (34. b4 $1 $16 {[%cal Rb4a5]} Rb5 35. a3) 34... Nd5 {[%emt 0:00:19]} 35. Ra3 {[%emt 0:01:37]} Re8 {[%emt 0:01:14]} 36. Bc4 {[%emt 0:01:02]} Be6 {[%emt 0:00:31]} 37. Rf3+ {[%emt 0:02:11]} Bf5 {[%emt 0:01:32]} 38. Bd3 {[%emt 0:02:23]} Ke6 {[%emt 0:02:20]} 39. Re1 {[%emt 0:01:21]} Raa8 {[%emt 0:01:10]} 40. Bxf5+ {[%emt 0:00:00]} gxf5 {[%emt 0:00:00]} 41. Bb8+ {[%emt 0:11:06]} Kd7 {[%emt 0:00:15]} 42. Rxe8 {[%emt 0:00:03]} Kxe8 $14 {[%emt 0:00:05][%mdl 4096] Endgame KRB-KRN} 43. Be5 {[%emt 0:00:07]} a3 {[%emt 0:09:45]} 44. bxa3 {[%emt 0:00:27]} ({Don't play} 44. Rxa3 Rxa3 45. bxa3 Nc3 $11) 44... b5 {[%emt 0:00:14]} 45. Rxf5 {[%emt 0:03:46]} Rxa3 {[%emt 0:00:05]} 46. Rxh5 {[%emt 0:00:03]} Rxa2 {[%emt 0:00:07]} 47. Rh8+ {[%emt 0:01:57]} (47. Rh7 $1 $14) 47... Kf7 $11 {[%emt 0:03:06] The position is equal.} 48. Rh7+ {[%emt 0:03:11]} Kg6 {[%emt 0:03:31]} 49. Rg7+ {[%emt 0:02:19]} Kf5 {[%emt 0:04:14]} 50. f3 {[%emt 0:00:22]} b4 {[%emt 0:01:47]} 51. g4+ {[%emt 0:00:05]} Ke6 {[%emt 0:00:04]} 52. Rb7 {[%emt 0:01:27]} c5 {[%emt 0:01:30]} 53. f4 {[%emt 0:06:06][%csl Gg4][%cal Rf4f5]} cxd4 {[%emt 0:01:46]} 54. Bxd4 {[%emt 0:00:42] And now f5+ would win.} Nxf4 {[%emt 0:00:09]} 55. Rxb4 {[%emt 0:00:10]} Rg2+ {[%emt 0:00:36]} 56. Kf1 {[%emt 0:00:16]} Rxg4 {[%emt 0:00:04]} 57. Be3 {[%emt 0:00:17] Weighted Error Value: White=0.10 (very precise) /Black=0.09 (flawless)} 1/2-1/2

[Event "Prague Festival-Challengers 2022"]
[Site "Prague"]
[Date "2022.06.14"]
[Round "6.2"]
[White "Pechac, Jergus"]
[Black "Niemann, Hans Moke"]
[Result "1/2-1/2"]
[ECO "E56"]
[WhiteElo "2597"]
[BlackElo "2656"]
[Annotator "TA"]
[PlyCount "60"]
[EventDate "2022.06.07"]
[EventType "tourn"]
[EventCountry "CZE"]
[SourceTitle "playchess.com"]
[Source "ChessBase"]
[SourceQuality "1"]
[TimeControl "40/5400+30:1800+30"]

{[%evp 19,60,15,11,26,26,26,13,17,26,22,25,22,16,15,16,17,22,17,16,11,15,16,9,13,6,6,6,6,6,6,20,22,35,14,16,5,5,8,9,5,9,9,9]} 1. d4 {[%emt 0:00:04]} Nf6 {[%emt 0:00:55]} 2. c4 {[%emt 0:00:08]} e6 {[%emt 0:00:14]} 3. Nc3 {[%emt 0:00:06]} Bb4 {[%emt 0:01:20]} 4. e3 {[%emt 0:00:06]} O-O {[%emt 0:00:13]} 5. Bd3 {[%emt 0:00:05]} d5 {[%emt 0:00:10]} 6. Nf3 {[%emt 0:00:06]} c5 {[%emt 0:02:28]} 7. O-O {[%emt 0:00:15]} Nc6 {[%emt 0:03:33]} 8. cxd5 {[%emt 0:00:13]} exd5 {[%emt 0:00:35]} 9. dxc5 {[%emt 0:00:36]} Bxc5 {[%emt 0:01:49]} 10. b3 {[%emt 0:00:18]} Bg4 $1 {[%emt 0:00:45] 10...Bg4 is better than 10...Qe7.} 11. Bb2 {[%emt 0:01:44] E56: Nimzo-Indian: Rubinstein: Main Line: 7...Nc6.} a6 {[%emt 0:00:31]} 12. h3 {[%emt 0:02:30]} Bh5 {[%emt 0:03:33]} 13. Be2 {[%emt 0:00:54]} Rc8 {[%emt 0:02:37]} 14. Rc1 {[%emt 0:05:24][%cal Oc3d5,Ba1c1,Bc1c2,Bc2b2,Bb2d2,Bd2d5][%mdl 32]} Ba7 {[%emt 0:00:11]} 15. Nh4 {[%emt 0:00:53]} Bg6 {[%emt 0:01:43]} 16. Nxg6 {[%emt 0:02:14]} hxg6 {[%emt 0:00:10]} 17. Bf3 {[%emt 0:03:27][%cal Rc3d5]} d4 {[%emt 0:00:13]} 18. exd4 {[%emt 0:00:07]} Bxd4 {[%emt 0:00:52]} 19. Rc2 {[%emt 0:02:07] With the idea Rd2.} Be5 {[%emt 0:01:16] [#]} 20. Nd5 $146 {[%emt 0:01:51]} ({Predecessor:} 20. Rd2 Qa5 21. Bxc6 Rxc6 22. Nd5 Re6 23. Bxe5 Rxe5 24. Ne3 Re6 25. Nc4 Qc5 26. Rd6 Rfe8 {½-½ (26) Babula,V (2597)-Wojtaszek,R (2593) Burguillos 2008}) 20... Bxb2 {[%emt 0:20:06]} 21. Rxb2 {[%emt 0:05:23]} Ne5 {[%emt 0:00:14]} 22. Rd2 {[%emt 0:00:10] next Nxf6+ is good for White.} Nxf3+ {[%emt 0:00:17]} 23. Qxf3 {[%emt 0:00:06]} Nxd5 {[%emt 0:01:07]} 24. Rxd5 {[%emt 0:00:05]} Qe7 {[%emt 0:00:38]} 25. Rfd1 {[%emt 0:01:25]} Rc7 {[%emt 0:00:06]} 26. Qd3 {[%emt 0:02:19]} Rfc8 {[%emt 0:00:51][%cal Bf8c8,Bc8c1,Bc1c2][%mdl 32] The position is equal.} 27. Rd7 {[%emt 0:00:33]} Rxd7 {[%emt 0:01:52]} 28. Qxd7 {[%emt 0:00:07]} Qxd7 {[%emt 0:00:29]} 29. Rxd7 {[%emt 0:00:06]} Rc1+ {[%emt 0:00:05]} 30. Kh2 {[%emt 0:00:05]} Rc2 {[%emt 0:00:04][%csl LRa2,LRf2] A balanced but interesting game.  Weighted Error Value: White=0.02 (flawless) /Black=0.02 (flawless)} 1/2-1/2

[Event "Prague Festival-Challengers 2022"]
[Site "Prague"]
[Date "2022.06.14"]
[Round "6.3"]
[White "Warmerdam, Max"]
[Black "Abdusattorov, Nodirbek"]
[Result "0-1"]
[ECO "E04"]
[WhiteElo "2614"]
[BlackElo "2661"]
[Annotator "TA"]
[PlyCount "80"]
[EventDate "2022.06.07"]
[EventType "tourn"]
[EventCountry "CZE"]
[SourceTitle "playchess.com"]
[Source "ChessBase"]
[SourceQuality "1"]
[TimeControl "40/5400+30:1800+30"]

{[%evp 11,80,12,11,0,0,0,0,0,0,0,0,0,0,0,7,0,0,0,0,-28,-19,-16,0,-125,-125,-126,-129,-129,-129,-129,-127,-122,-126,-126,-121,-120,-127,-187,-186,-177,-172,-290,-285,-330,-304,-397,-393,-494,-493,-466,-445,-604,-660,-668,-525,-564,-525,-525,-525,-6335,-5773,-4918,-1200,-5543,-2357,-1729,-1497,-1386,-1193,-1039,-1006]} 1. d4 {[%emt 0:00:05]} Nf6 {[%emt 0:00:21]} 2. c4 {[%emt 0:00:05]} e6 {[%emt 0:00:11]} 3. g3 {[%emt 0:00:09]} d5 {[%emt 0:00:34]} 4. Bg2 {[%emt 0:00:07]} dxc4 {[%emt 0:00:07]} 5. Nf3 {[%emt 0:00:06]} Nc6 {[%emt 0:00:12]} 6. O-O {[%emt 0:00:42]} Rb8 {[%emt 0:00:07]} 7. b3 {[%emt 0:01:06] E04: Open Catalan: 5 Nf3.} cxb3 {[%emt 0:01:34]} 8. axb3 {[%emt 0:00:09]} Be7 {[%emt 0:09:59]} 9. Bb2 {[%emt 0:00:07] The position is equal.} O-O {[%emt 0:00:05]} 10. Qc1 {[%emt 0:01:05] [#]} a6 $5 $146 {[%emt 0:10:08][%mdl 8] New and interesting.} ({Predecessor:} 10... Nb4 11. Rxa7 Na6 12. Na3 Ne4 13. Ne5 Nd6 14. Rxa6 bxa6 15. Nc6 Qe8 16. Nxb8 Bb7 17. Bxb7 Nxb7 18. Nc6 {1-0 (18) Aghasiyev,K (2441)-Efremov,V (2188) Chess.com INT 2020}) 11. Rd1 {[%emt 0:01:05]} Bd7 {[%emt 0:02:57]} 12. Nc3 {[%emt 0:01:20]} Nb4 {[%emt 0:07:51]} 13. e4 {[%emt 0:02:17]} Rc8 {[%emt 0:05:51]} 14. Qf4 {[%emt 0:06:11]} Be8 {[%emt 0:06:43]} 15. Bh3 {[%emt 0:41:29][%cal Od4d5]} c6 {[%emt 0:03:03] Prevents d5.} 16. Rac1 {[%emt 0:02:24]} b5 {[%emt 0:02:28]} 17. d5 {[%emt 0:03:19]} (17. Ne2 $11) 17... cxd5 $17 {[%emt 0:04:26] Black keeps a firm grip on the game.} 18. exd5 {[%emt 0:00:45]} Nbxd5 {[%emt 0:04:52]} 19. Nxd5 {[%emt 0:01:26]} Nxd5 {[%emt 0:00:06][%cal Bf6d5,Bd5f4,Bf4h3][%mdl 32]} 20. Rxc8 {[%emt 0:02:47]} Nxf4 {[%emt 0:00:05][%mdl 64] Discovered Attack. Dancing on a razor blade.} ({Don't take} 20... Qxc8 21. Rxd5 Qc2 22. Rd2 Qb1+ 23. Bf1 $18) 21. Rcxd8 {[%emt 0:00:22]} Nxh3+ {[%emt 0:00:06]} 22. Kg2 {[%emt 0:00:49]} Bxd8 {[%emt 0:00:06]} 23. Rxd8 {[%emt 0:06:06] aiming for Ba3.} Bc6 {[%emt 0:00:16]} 24. Rd6 {[%emt 0:00:06] [#]} (24. Rxf8+ $17 Kxf8 25. Kxh3 Bxf3 26. g4) 24... Rc8 $1 $19 {[%emt 0:02:13]} 25. Kxh3 {[%emt 0:01:12] And now Nd4 would win.} Bxf3 {[%emt 0:00:05]} 26. Rxa6 {[%emt 0:03:10][%mdl 4096] Endgame KRB-KRB} (26. Rd3 {is a better defense.} Bd5 27. b4) 26... h5 {[%emt 0:00:34]} 27. Bd4 {[%emt 0:09:10]} f6 {[%emt 0:05:39] ...Rd8 is the strong threat.} 28. b4 {[%emt 0:04:23]} Rc4 {[%emt 0:00:24][%csl LRb4,LRd4]} 29. Bc5 {[%emt 0:00:33]} g5 {[%emt 0:00:46] Black is clearly winning.} 30. Ra3 {[%emt 0:04:24] [#]} Kf7 $1 {[%emt 0:00:39]} 31. Ra1 {[%emt 0:04:11]} (31. Rxf3 g4+) 31... Kg6 {[%emt 0:01:37]} 32. Re1 {[%emt 0:00:06]} Rc3 {[%emt 0:00:18]} 33. Ra1 {[%emt 0:03:18]} f5 {[%emt 0:03:02][%cal Oh5h4,Bf6f5,Bf5f4][%mdl 32] Threatens to win with ...h4!} 34. Re1 {[%emt 0:01:26]} Bd5 {[%emt 0:03:22] Strongly threatening ...h4.} 35. Ra1 {[%emt 0:00:55]} h4 {[%emt 0:00:32]} 36. Ra7 {[%emt 0:00:52]} e5 {[%emt 0:02:35]} (36... hxg3 $142 37. hxg3 g4+ 38. Kh2 Rc1) 37. Rd7 {[%emt 0:00:24]} Bf3 {[%emt 0:00:45]} (37... Bc4 $142 38. Rd1 Be2) 38. Be3 {[%emt 0:00:37]} f4 {[%emt 0:02:15]} 39. Bd2 {[%emt 0:00:06]} Rc8 {[%emt 0:01:07] ( -> ...g4+)} 40. g4 {[%emt 0:00:00]} Rc2 {[%emt 0:00:00] Weighted Error Value: White=0.67/Black=0.37} 0-1

[Event "Prague Festival-Challengers 2022"]
[Site "Prague"]
[Date "2022.06.14"]
[Round "6.4"]
[White "Sasikiran, Krishnan"]
[Black "Michalik, Peter"]
[Result "1-0"]
[ECO "E04"]
[WhiteElo "2651"]
[BlackElo "2579"]
[Annotator "RC"]
[PlyCount "71"]
[EventDate "2022.06.07"]
[EventType "tourn"]
[EventCountry "CZE"]
[SourceTitle "playchess.com"]
[Source "ChessBase"]
[SourceQuality "1"]
[TimeControl "40/5400+30:1800+30"]

1. Nf3 {[%emt 0:00:04]} d5 {[%emt 0:00:15]} 2. d4 {[%emt 0:00:21]} Nf6 {[%emt 0:00:08]} 3. c4 {[%emt 0:00:07]} e6 {[%emt 0:00:09]} 4. g3 {[%emt 0:00:10]} dxc4 {[%emt 0:00:44]} 5. Bg2 {[%emt 0:00:14]} c5 {[%emt 0:00:05]} 6. O-O {[%emt 0:02:23]} Nc6 {[%emt 0:00:05]} 7. Qa4 {[%emt 0:04:55]} Bd7 {[%emt 0:01:15]} 8. Qxc4 {[%emt 0:00:18]} b5 {[%emt 0:00:56]} 9. Qc3 {[%emt 0:01:24]} b4 {[%emt 0:01:36]} 10. Qd3 {[%emt 0:01:16]} Rc8 {[%emt 0:03:36]} 11. dxc5 {[%emt 0:01:30]} Bxc5 {[%emt 0:00:09]} 12. Bg5 {[%emt 0:04:07]} O-O {[%emt 0:13:19]} 13. Nbd2 {[%emt 0:10:41]} Be7 {[%emt 0:07:40]} 14. Rfd1 {[%emt 0:13:01]} h6 {[%emt 0:05:18]} 15. Bxf6 {[%emt 0:08:19]} Bxf6 {[%emt 0:00:53]} 16. Ne4 {[%emt 0:02:45]} Rc7 {[%emt 0:00:13]} 17. Rd2 {[%emt 0:03:28]} Be7 {[%emt 0:05:55]} 18. Rad1 {[%emt 0:02:44]} Qb8 {[%emt 0:01:17]} 19. Qe3 {[%emt 0:02:55]} Bc8 {[%emt 0:01:28]} 20. h4 {[%emt 0:02:50]} Ba6 {[%emt 0:06:39]} 21. g4 {[%emt 0:06:24]} b3 {[%emt 0:13:24]} 22. axb3 {[%emt 0:03:26]} Bb4 {[%emt 0:02:32]} 23. Nc3 {[%emt 0:09:08]} Ne7 {[%emt 0:01:30]} 24. Nd4 {[%emt 0:03:05]} Rfc8 {[%emt 0:02:15]} 25. Nxe6 {[%emt 0:01:43]} Bxc3 {[%emt 0:04:53]} 26. bxc3 {[%emt 0:01:56]} fxe6 {[%emt 0:02:45]} 27. Qxe6+ {[%emt 0:00:11]} Kh8 {[%emt 0:00:02]} 28. Qxa6 {[%emt 0:00:21]} Rxc3 {[%emt 0:00:04]} 29. Qe6 {[%emt 0:03:07]} Ng8 {[%emt 0:00:13]} 30. g5 {[%emt 0:02:23]} Rf8 {[%emt 0:02:27]} 31. e3 {[%emt 0:04:06]} Rxb3 {[%emt 0:00:58]} 32. Be4 {[%emt 0:01:38]} Rb6 {[%emt 0:04:58]} 33. Rd6 {[%emt 0:00:24]} Rxd6 {[%emt 0:00:03]} 34. Qxd6 {[%emt 0:00:06]} Qb3 {[%emt 0:00:04]} 35. Rd2 {[%emt 0:01:38]} Qf7 {[%emt 0:04:08]} 36. Qg6 {[%emt 0:01:03]} 1-0